bitfinex/quotes_BTCUSD_20250812
["timestamp","ask_amount","ask_price","bid_price","bid_amount"]
[1755036096849,0.27799632,119920.0,119910.0,1.46486118]
[1755036097382,0.27799632,119920.0,119910.0,1.29806942]
[1755036098202,0.27799632,119920.0,119910.0,1.16826942]
[1755036098403,0.27799632,119920.0,119910.0,1.29806942]
[1755036102902,0.27799632,119920.0,119910.0,0.78845425]
[1755036103321,0.27799632,119920.0,119910.0,1.29802942]
[1755036103733,0.25310632,119920.0,119910.0,1.29802942]
[1755036104698,0.25310632,119920.0,119910.0,0.78845425]
[1755036104907,0.25310632,119920.0,119910.0,1.29802942]
[1755036105742,0.25310632,119920.0,119910.0,0.78845425]
[1755036105945,0.25310632,119920.0,119910.0,1.29802942]
[1755036107675,0.25310632,119920.0,119910.0,0.78845425]
[1755036107877,0.25310632,119920.0,119910.0,0.98845425]
[1755036108024,0.25310632,119920.0,119910.0,0.76344325]
[1755036111157,0.25310632,119920.0,119910.0,0.96344325]
[1755036112637,0.25310632,119920.0,119910.0,0.48368325]
[1755036112935,0.27055534,119920.0,119910.0,0.53072]
[1755036113139,0.80502051,119920.0,119910.0,0.53072]
[1755036113342,0.29544534,119920.0,119910.0,0.53072]
[1755036113551,0.29444534,119920.0,119910.0,0.52972]
[1755036113755,0.29444534,119920.0,119910.0,0.32972]
[1755036113958,0.30044534,119920.0,119910.0,0.33072]
[1755036115846,0.30044534,119920.0,119910.0,0.20096]
[1755036116053,0.30044534,119920.0,119910.0,0.33072]
[1755036116808,0.81002051,119920.0,119910.0,0.33072]
[1755036117039,0.30044534,119920.0,119910.0,0.33072]
[1755036118334,0.81002051,119920.0,119910.0,0.33072]
[1755036120754,0.83078511,119920.0,119910.0,0.33072]
[1755036120980,0.18424078,119910.0,119900.0,0.2]
[1755036121181,0.69920595,119910.0,119900.0,0.2]
[1755036121381,0.18963078,119910.0,119900.0,0.2]
[1755036122149,0.1668335,119880.0,119870.0,0.61692771]
[1755036122381,0.1722235,119880.0,119870.0,0.47945966]
[1755036122858,0.1722235,119880.0,119870.0,0.59673641]
[1755036123075,0.1722235,119880.0,119870.0,0.5298887]
[1755036124186,0.1782235,119880.0,119870.0,0.5308887]
[1755036124401,0.1749935,119880.0,119870.0,0.5308887]
[1755036124638,0.1749935,119880.0,119870.0,0.5329887]
[1755036125255,0.1782235,119880.0,119870.0,0.5308887]
[1755036125457,0.19567252,119880.0,119870.0,0.5308887]
[1755036129082,0.19567252,119880.0,119870.0,0.3308887]
[1755036130562,0.70524769,119880.0,119870.0,0.3308887]
[1755036131340,0.19567252,119880.0,119870.0,0.3308887]
[1755036133869,0.70524769,119880.0,119870.0,0.3308887]
[1755036134251,0.16686133,119860.0,119850.0,0.20323]
[1755036134489,0.16686133,119860.0,119850.0,0.43817498]
[1755036134755,0.17225133,119860.0,119850.0,0.08284498]
[1755036134955,0.18970035,119860.0,119850.0,0.00012173]
[1755036135171,0.6818265,119860.0,119850.0,0.00012173]
[1755036135418,0.6818265,119860.0,119850.0,0.12988173]
[1755036135419,0.17225133,119860.0,119850.0,0.12988173]
[1755036135639,0.69927552,119860.0,119850.0,0.12988173]
[1755036136509,0.72004012,119860.0,119850.0,0.12988173]
[1755036136761,0.72104012,119860.0,119850.0,0.13088173]
[1755036136978,0.80252455,119860.0,119850.0,0.12988173]
[1755036137189,0.71478023,119860.0,119850.0,0.12988173]
[1755036137401,0.71978023,119860.0,119850.0,0.13088173]
[1755036137583,0.74154483,119860.0,119850.0,0.13088173]
[1755036138079,0.82426808,119860.0,119850.0,0.00112173]
[1755036138280,0.82426808,119860.0,119840.0,0.13004]
[1755036138281,0.18432428,119850.0,119840.0,0.13004]
[1755036138495,0.16691704,119820.0,119810.0,0.2]
[1755036138709,0.16907704,119820.0,119810.0,0.33048]
[1755036138926,0.17230704,119820.0,119810.0,0.33096629]
[1755036139768,0.16907704,119820.0,119810.0,0.33096629]
[1755036139975,0.16907704,119820.0,119810.0,0.33306629]
[1755036140188,0.17007704,119820.0,119810.0,0.33829629]
[1755036140402,0.17330704,119820.0,119810.0,0.33296629]
[1755036140585,0.70364681,119820.0,119810.0,0.33296629]
[1755036140826,0.19407164,119820.0,119810.0,0.13296629]
[1755036141045,0.70364681,119820.0,119810.0,0.13296629]
[1755036141259,0.22547734,119820.0,119810.0,0.13296629]
[1755036141474,0.22547734,119820.0,119790.0,0.0002]
[1755036141475,0.18439392,119800.0,119790.0,0.0002]
[1755036141691,0.18655392,119800.0,119790.0,0.13168]
[1755036141958,0.20949852,119800.0,119790.0,0.13168]
[1755036142170,0.21631395,119800.0,119790.0,0.13168]
[1755036142806,0.21413395,119800.0,119790.0,0.13378]
[1755036143017,0.18439392,119800.0,119790.0,0.13701]
[1755036143259,0.18439392,119800.0,119790.0,0.64658517]
[1755036143480,0.1669449,119800.0,119790.0,0.41973325]
[1755036143957,0.1679449,119800.0,119790.0,0.42173325]
[1755036144908,0.1669449,119800.0,119790.0,0.41973325]
[1755036145390,0.1669449,119800.0,119790.0,0.42073325]
[1755036145632,0.1669449,119800.0,119790.0,0.93030842]
[1755036145879,0.1669449,119800.0,119790.0,0.42073325]
[1755036146140,0.1669449,119800.0,119790.0,0.42173325]
[1755036146141,0.18968701,119800.0,119790.0,0.42173325]
[1755036147519,0.18968701,119800.0,119790.0,0.44677925]
[1755036149281,0.18968701,119800.0,119790.0,0.95635442]
[1755036149925,0.18968701,119800.0,119790.0,0.44677925]
[1755036150352,0.18968701,119800.0,119790.0,0.95635442]
[1755036150993,0.18968701,119800.0,119790.0,0.44677925]
[1755036151425,0.18968701,119800.0,119790.0,0.95635442]
[1755036151641,0.001,119800.0,119790.0,0.95635442]
[1755036152081,0.1679449,119800.0,119790.0,0.44677925]
[1755036152292,0.1679449,119800.0,119790.0,0.95635442]
[1755036152735,0.001,119800.0,119790.0,1.12331326]
[1755036152954,0.001,119800.0,119790.0,1.14677326]
[1755036153420,0.001,119800.0,119790.0,0.63719809]
[1755036153629,0.001,119800.0,119790.0,0.95635442]
[1755036153843,0.1679449,119800.0,119790.0,0.95635442]
[1755036154080,0.1679449,119800.0,119790.0,0.95535442]
[1755036154081,0.001,119800.0,119790.0,0.95535442]
[1755036154304,0.001,119800.0,119790.0,1.12231326]
[1755036154536,0.16693101,119810.0,119800.0,0.55]
[1755036154759,0.16693101,119810.0,119800.0,1.27940842]
[1755036155041,0.17574978,119820.0,119800.0,1.28249842]
[1755036155276,0.17574978,119820.0,119810.0,0.08272325]
[1755036155496,0.17574978,119820.0,119810.0,0.08780325]
[1755036156183,0.17574978,119820.0,119810.0,0.11284525]
[1755036156829,0.17774978,119820.0,119810.0,0.11384525]
[1755036157498,0.00348689,119820.0,119810.0,0.79243802]
[1755036157711,0.17040393,119820.0,119810.0,0.11384525]
[1755036157926,0.17040393,119820.0,119810.0,0.62550705]
[1755036158137,0.17040393,119820.0,119810.0,0.62342042]
[1755036158347,0.17040393,119820.0,119810.0,0.11384525]
[1755036158770,0.17040393,119820.0,119810.0,0.62342042]
[1755036159213,0.17249393,119820.0,119810.0,0.026042]
[1755036159427,0.17249393,119820.0,119810.0,0.13636]
[1755036159428,0.70256812,119820.0,119810.0,0.13636]
[1755036159882,0.17040393,119820.0,119810.0,0.73064842]
[1755036160105,0.17249393,119820.0,119810.0,0.22107325]
[1755036160319,0.17554393,119820.0,119810.0,0.13636]
[1755036160540,0.17249393,119820.0,119810.0,0.13636]
[1755036160752,0.17249393,119820.0,119810.0,0.13835]
[1755036161853,0.17040393,119820.0,119810.0,0.73582505]
[1755036162070,0.17040393,119820.0,119810.0,0.73373842]
[1755036162282,0.17040393,119820.0,119810.0,0.22416325]
[1755036162755,0.00348689,119820.0,119810.0,0.73373842]
[1755036163193,0.17040393,119820.0,119810.0,0.93373842]
[1755036163402,0.00348689,119820.0,119810.0,0.93373842]
[1755036164086,0.00348689,119820.0,119810.0,1.10066939]
[1755036164727,0.00348689,119820.0,119810.0,0.59109422]
[1755036164932,0.00348689,119820.0,119810.0,1.10066939]
[1755036165169,0.00248689,119820.0,119810.0,1.10066939]
[1755036165588,0.00248689,119820.0,119810.0,1.10166939]
[1755036166214,0.00048689,119820.0,119810.0,1.10066939]
[1755036166429,0.00148689,119820.0,119810.0,0.59409422]
[1755036166653,0.00148689,119820.0,119810.0,0.42844325]
[1755036166654,0.16840393,119820.0,119810.0,0.42844325]
[1755036166875,0.16840393,119820.0,119810.0,0.22336325]
[1755036166876,0.20707469,119820.0,119810.0,0.22336325]
[1755036167089,0.17354393,119820.0,119810.0,0.22336325]
[1755036167514,0.19099295,119820.0,119810.0,0.004]
[1755036167740,0.19099295,119820.0,119810.0,0.14108]
[1755036168414,0.16840393,119820.0,119810.0,0.14616]
[1755036168626,0.16840393,119820.0,119810.0,0.22788325]
[1755036169280,0.16740393,119820.0,119810.0,0.22488325]
[1755036169708,0.17049393,119820.0,119810.0,0.22279325]
[1755036170326,0.17354393,119820.0,119810.0,0.13808]
[1755036170745,0.17049393,119820.0,119810.0,0.14007]
[1755036171376,0.18794295,119820.0,119810.0,0.14007]
[1755036171632,0.19099295,119820.0,119810.0,0.13808]
[1755036171846,0.21555554,119820.0,119810.0,0.13808]
[1755036172282,0.71422287,119820.0,119810.0,0.13968]
[1755036172488,0.23110805,119820.0,119810.0,0.13968]
[1755036172769,0.20654546,119820.0,119810.0,0.13968]
[1755036173088,0.19099295,119820.0,119810.0,0.13968]
[1755036176504,0.71228843,119820.0,119810.0,0.001]
[1755036176735,0.89305254,119820.0,119810.0,0.001]
[1755036176946,0.1669449,119800.0,119790.0,0.13916]
[1755036177177,0.1690349,119800.0,119790.0,0.13916]
[1755036177385,0.19166305,119800.0,119790.0,0.13916]
[1755036177813,0.19471305,119800.0,119790.0,0.13916]
[1755036178692,0.19571305,119800.0,119790.0,0.13916]
[1755036179367,0.19571305,119800.0,119790.0,0.0002]
[1755036179577,0.69638038,119800.0,119790.0,0.0002]
[1755036179798,0.67375223,119800.0,119790.0,0.0002]
[1755036180003,0.19253392,119800.0,119790.0,0.0002]
[1755036180447,0.22011395,119800.0,119790.0,0.0002]
[1755036180696,0.19253392,119800.0,119790.0,0.0002]
[1755036180911,0.71878128,119800.0,119790.0,0.0002]
[1755036181134,0.22011395,119800.0,119790.0,0.0002]
[1755036181349,0.19253392,119800.0,119790.0,0.0002]
[1755036181763,0.71293603,119800.0,119790.0,0.0002]
[1755036182014,0.27565239,119800.0,119790.0,0.0002]
[1755036182245,0.72500491,119800.0,119790.0,0.0002]
[1755036182677,0.25179622,119800.0,119790.0,0.0002]
[1755036182899,0.71665989,119800.0,119790.0,0.0002]
[1755036183336,0.21799256,119800.0,119790.0,0.0002]
[1755036183555,0.33261392,119800.0,119790.0,0.0002]
[1755036184196,0.36626768,119800.0,119790.0,0.0002]
[1755036184403,0.43398777,119800.0,119790.0,0.0002]
[1755036184638,0.18948392,119800.0,119790.0,0.0002]
[1755036184879,0.18948392,119800.0,119790.0,0.00227]
[1755036186762,0.19266392,119800.0,119790.0,0.0002]
[1755036189203,0.33314392,119800.0,119790.0,0.0002]
[1755036190719,0.18948392,119800.0,119790.0,0.0002]
[1755036190911,0.18739392,119800.0,119790.0,0.0055]
[1755036192692,0.18950392,119800.0,119790.0,0.00227]
[1755036192871,0.18950392,119800.0,119790.0,0.0002]
[1755036194683,0.25265819,119800.0,119790.0,0.0002]
[1755036194910,0.19268392,119800.0,119790.0,0.0002]
[1755036197113,0.18950392,119800.0,119790.0,0.0002]
[1755036198403,0.71253968,119800.0,119790.0,0.0002]
[1755036199047,0.21387235,119800.0,119790.0,0.0002]
[1755036199256,0.35381235,119800.0,119790.0,0.0002]
[1755036199457,0.33580392,119800.0,119790.0,0.0002]
[1755036199676,0.19268392,119800.0,119790.0,0.0002]
[1755036200353,0.18950392,119800.0,119790.0,0.00227]
[1755036200781,0.18950392,119800.0,119790.0,0.0002]
[1755036201249,0.87079383,119800.0,119790.0,0.0002]
[1755036201459,0.39331493,119800.0,119790.0,0.0002]
[1755036201892,0.35735235,119800.0,119790.0,0.0002]
[1755036202540,0.21069235,119800.0,119790.0,0.0002]
[1755036202750,0.35421235,119800.0,119790.0,0.0002]
[1755036202957,0.33302392,119800.0,119790.0,0.0002]
[1755036203373,0.33620392,119800.0,119790.0,0.0002]
[1755036203613,0.35956744,119800.0,119790.0,0.0002]
[1755036204038,0.41221837,119800.0,119790.0,0.0002]
[1755036204463,0.21604744,119800.0,119790.0,0.0002]
[1755036204671,0.21286744,119800.0,119790.0,0.0002]
[1755036204907,0.21286744,119800.0,119790.0,0.00227]
[1755036205348,0.18950392,119800.0,119790.0,0.00227]
[1755036206589,0.19268392,119800.0,119790.0,0.0002]
[1755036206788,0.27516835,119800.0,119790.0,0.0002]
[1755036207654,0.19268392,119800.0,119790.0,0.0002]
[1755036210348,0.18950392,119800.0,119790.0,0.00232]
[1755036210557,0.18739392,119800.0,119790.0,0.00536]
[1755036214219,0.19267392,119800.0,119790.0,0.0002]
[1755036215571,0.19267392,119800.0,119790.0,0.00232]
[1755036215572,0.18956392,119800.0,119790.0,0.00232]
[1755036216072,0.18956392,119800.0,119790.0,0.00536]
[1755036216292,0.18739392,119800.0,119790.0,0.00536]
[1755036216722,0.18956392,119800.0,119790.0,0.00536]
[1755036216885,0.18956392,119800.0,119790.0,0.00232]
[1755036217298,0.18956392,119800.0,119790.0,0.14592]
[1755036217492,0.19267392,119800.0,119790.0,0.1438]
[1755036218755,0.21591593,119800.0,119790.0,0.1438]
[1755036218956,0.18956392,119800.0,119790.0,0.14896]
[1755036219168,0.18956392,119800.0,119790.0,0.0002]
[1755036219325,0.72233229,119800.0,119790.0,0.0002]
[1755036219507,0.29464613,119800.0,119790.0,0.0002]
[1755036219707,0.72233229,119800.0,119790.0,0.0002]
[1755036219939,0.21591593,119800.0,119790.0,0.0002]
[1755036220275,0.64360209,119800.0,119790.0,0.0002]
[1755036220396,0.21591593,119800.0,119790.0,0.0002]
[1755036220800,0.64360209,119800.0,119790.0,0.0002]
[1755036221451,0.62036008,119800.0,119790.0,0.0002]
[1755036221652,0.70284451,119800.0,119790.0,0.0002]
[1755036222087,0.19267392,119800.0,119790.0,0.0002]
[1755036222292,0.62036008,119800.0,119790.0,0.0002]
[1755036223168,0.19267392,119800.0,119790.0,0.0002]
[1755036223338,0.19267392,119800.0,119770.0,0.0181209]
[1755036223339,0.1844218,119780.0,119770.0,0.0181209]
[1755036223561,0.1897018,119780.0,119770.0,0.0181209]
[1755036223768,0.1865918,119780.0,119770.0,0.0181209]
[1755036224015,0.1865918,119780.0,119770.0,0.0202409]
[1755036224735,0.1865918,119780.0,119770.0,0.02036279]
[1755036225282,0.1875918,119780.0,119770.0,0.02440279]
[1755036228489,0.1854218,119780.0,119770.0,0.02440279]
[1755036228945,0.1854218,119780.0,119770.0,0.46238394]
[1755036229321,0.1854218,119780.0,119770.0,0.02440279]
[1755036231729,0.18409434,119780.0,119770.0,0.02440279]
[1755036232522,0.18409434,119780.0,119750.0,0.00507]
[1755036232523,0.16700066,119760.0,119750.0,0.00507]
[1755036232857,0.19631706,119760.0,119750.0,0.0051922]
[1755036233062,0.19942706,119760.0,119750.0,0.1471922]
[1755036233646,0.19631706,119760.0,119750.0,0.1481922]
[1755036233848,0.17017066,119760.0,119750.0,0.1503122]
[1755036234068,0.16700066,119760.0,119750.0,0.1533522]
[1755036234274,0.16700066,119760.0,119750.0,0.1523522]
[1755036234275,0.16917066,119760.0,119750.0,0.1523522]
[1755036234480,0.16917066,119760.0,119750.0,0.1493122]
[1755036234643,0.17017066,119760.0,119750.0,0.1493122]
[1755036235049,0.17017066,119760.0,119750.0,0.1523522]
[1755036235362,0.16800066,119760.0,119750.0,0.1523522]
[1755036235674,0.18544968,119760.0,119750.0,0.1523522]
[1755036236827,0.18544968,119760.0,119750.0,0.23507545]
[1755036237618,0.18544968,119760.0,119750.0,0.43507545]
[1755036237829,0.16800066,119760.0,119750.0,0.58507545]
[1755036238060,0.16800066,119760.0,119750.0,0.75209006]
[1755036238629,0.001,119760.0,119750.0,0.75209006]
[1755036240225,0.001,119760.0,119750.0,1.17978152]
[1755036240442,0.001,119760.0,119750.0,0.75209006]
[1755036240647,0.001,119760.0,119750.0,1.17978152]
[1755036240850,0.001,119760.0,119750.0,0.75209006]
[1755036241060,0.001,119760.0,119750.0,1.17978152]
[1755036241271,0.001,119760.0,119750.0,1.20398152]
[1755036242032,0.001,119760.0,119750.0,1.20498152]
[1755036242466,0.001,119760.0,119750.0,1.65667298]
[1755036242680,0.00012498,119760.0,119750.0,1.68367298]
[1755036242914,0.17529294,119800.0,119790.0,0.71695884]
[1755036243116,0.17529294,119800.0,119790.0,0.94748209]
[1755036243334,0.17529294,119800.0,119790.0,0.78052325]
[1755036244605,0.17829294,119800.0,119790.0,0.78152325]
[1755036249034,0.17829294,119800.0,119790.0,0.63888325]
[1755036249282,0.17829294,119800.0,119790.0,0.78152325]
[1755036250080,0.18025294,119800.0,119790.0,0.48372325]
[1755036250260,0.18318294,119800.0,119790.0,0.62620325]
[1755036250688,0.18318294,119800.0,119790.0,0.48372325]
[1755036250879,0.18318294,119800.0,119790.0,0.62620325]
[1755036252054,0.20063196,119800.0,119790.0,0.62624325]
[1755036253041,0.19770196,119800.0,119790.0,0.62829325]
[1755036256210,0.20063196,119800.0,119790.0,0.42624325]
[1755036256408,0.20063196,119800.0,119790.0,0.22624325]
[1755036256635,0.20063196,119800.0,119790.0,0.201]
[1755036256866,0.20063196,119800.0,119790.0,0.3432]
[1755036257471,0.62832342,119800.0,119790.0,0.3432]
[1755036257671,0.62832342,119800.0,119790.0,0.34324]
[1755036257856,0.65298752,119800.0,119790.0,0.34324]
[1755036258259,0.22529606,119800.0,119790.0,0.34324]
[1755036262245,0.65298752,119800.0,119790.0,0.14324]
[1755036262450,0.22529606,119800.0,119790.0,0.14324]
[1755036262667,0.66325103,119800.0,119790.0,0.14324]
[1755036263039,0.22529606,119800.0,119790.0,0.14324]
[1755036263236,0.66325103,119800.0,119790.0,0.14324]
[1755036264789,0.22529606,119800.0,119790.0,0.14324]
[1755036264995,0.66325103,119800.0,119790.0,0.14324]
[1755036265621,0.22529606,119800.0,119790.0,0.14324]
[1755036265828,0.66325103,119800.0,119790.0,0.14324]
[1755036266035,1.18369043,119800.0,119790.0,0.001]
[1755036266234,1.101206,119800.0,119790.0,0.14292]
[1755036266444,0.66325103,119800.0,119790.0,0.14292]
[1755036267379,0.63858693,119800.0,119790.0,0.14292]
[1755036268472,0.20063196,119800.0,119790.0,0.14292]
[1755036268835,0.63858693,119800.0,119790.0,0.14292]
[1755036270255,0.69071329,119800.0,119790.0,0.14292]
[1755036270473,1.15113285,119800.0,119790.0,0.14292]
[1755036271139,1.09900649,119800.0,119790.0,0.14292]
[1755036271792,1.09800649,119800.0,119790.0,0.14192]
[1755036272222,1.10200649,119800.0,119790.0,0.14192]
[1755036272427,0.66405152,119800.0,119790.0,0.14192]
[1755036273166,1.10200649,119800.0,119790.0,0.14192]
[1755036273368,1.18449092,119800.0,119790.0,0.14192]
[1755036274520,0.16698672,119770.0,119760.0,0.428206]
[1755036274753,0.16698672,119770.0,119760.0,0.65479145]
[1755036275376,0.18443574,119770.0,119760.0,0.45479145]
[1755036275587,0.62239071,119770.0,119760.0,0.22974545]
[1755036275796,0.18643574,119770.0,119760.0,0.22974545]
[1755036276689,0.18643574,119770.0,119760.0,0.23074545]
[1755036276870,0.18643574,119770.0,119760.0,0.1480222]
[1755036277756,0.18643574,119770.0,119760.0,0.1470222]
[1755036278630,0.18443574,119770.0,119760.0,0.1470222]
[1755036278987,0.18543574,119770.0,119760.0,0.1470222]
[1755036280046,0.18543574,119770.0,119760.0,0.66978792]
[1755036280183,0.18543574,119770.0,119760.0,0.22974545]
[1755036286262,0.16798672,119770.0,119760.0,1.10565539]
[1755036286459,0.001,119770.0,119760.0,0.83470108]
[1755036286664,0.001,119770.0,119760.0,0.85975108]
[1755036288051,0.001,119770.0,119760.0,0.42179611]
[1755036288271,0.001,119770.0,119760.0,0.85975108]
[1755036288653,0.16798672,119770.0,119760.0,0.85975108]
[1755036289274,0.16798672,119770.0,119760.0,0.69275042]
[1755036289480,0.16798672,119770.0,119760.0,0.25479545]
[1755036293564,0.16798672,119770.0,119760.0,0.11315545]
[1755036293826,0.16798672,119770.0,119760.0,0.25439545]
[1755036294041,0.16798672,119770.0,119760.0,0.69235042]
[1755036294617,0.16798672,119770.0,119760.0,0.85935108]
[1755036297191,0.16798672,119770.0,119760.0,0.42139611]
[1755036297416,0.16798672,119770.0,119760.0,0.85935108]
[1755036298014,0.16798672,119770.0,119760.0,0.42139611]
[1755036298219,0.16798672,119770.0,119760.0,0.85935108]
[1755036301008,0.16798672,119770.0,119760.0,0.42139611]
[1755036301221,0.16798672,119770.0,119760.0,0.85935108]
[1755036301865,0.16798672,119770.0,119760.0,0.42139611]
[1755036302071,0.16798672,119770.0,119760.0,0.25439545]
[1755036302499,0.18756574,119770.0,119760.0,0.10999545]
[1755036302747,0.62858071,119770.0,119760.0,0.44825545]
[1755036302952,0.19062574,119770.0,119760.0,0.44825545]
[1755036303719,0.18756574,119770.0,119760.0,0.44825545]
[1755036303920,0.18756574,119770.0,119760.0,0.45036545]
[1755036304125,0.18543574,119770.0,119760.0,0.45354545]
[1755036306953,0.18543574,119770.0,119760.0,0.89150042]
[1755036307174,0.18543574,119770.0,119760.0,0.45354545]
[1755036307633,0.16798672,119770.0,119760.0,1.05850108]
[1755036309004,0.16798672,119770.0,119760.0,0.62054611]
[1755036309217,0.16798672,119770.0,119760.0,1.05850108]
[1755036310725,0.001,119770.0,119760.0,1.25850108]
[1755036311146,0.001,119770.0,119760.0,0.82054611]
[1755036311352,0.001,119770.0,119760.0,1.25850108]
[1755036312081,0.001,119770.0,119760.0,1.69645605]
[1755036312286,0.001,119770.0,119760.0,0.82054611]
[1755036312484,0.001,119770.0,119760.0,0.84452611]
[1755036312694,0.001,119770.0,119760.0,1.43241415]
[1755036312969,0.001,119770.0,119760.0,1.87036912]
[1755036313373,0.16695894,119790.0,119780.0,0.71697278]
[1755036313543,0.16695894,119790.0,119780.0,1.379481]
[1755036313722,0.16695894,119790.0,119780.0,1.382661]
[1755036314423,0.16695894,119790.0,119780.0,1.407708]
[1755036314864,0.16795894,119790.0,119780.0,1.407708]
[1755036315043,0.16795894,119790.0,119780.0,0.96975303]
[1755036316051,0.16795894,119790.0,119780.0,0.80278025]
[1755036316230,0.16795894,119790.0,119780.0,0.96975303]
[1755036317069,0.16795894,119790.0,119780.0,0.80278025]
[1755036318264,0.17314894,119790.0,119780.0,0.79749025]
[1755036318476,0.17314894,119790.0,119780.0,0.64749025]
[1755036320136,0.17008894,119790.0,119780.0,0.64960025]
[1755036320346,0.17008894,119790.0,119780.0,0.65278025]
[1755036320564,0.16795894,119790.0,119780.0,0.65278025]
[1755036320776,0.16795894,119790.0,119780.0,0.81975303]
[1755036320977,0.16795894,119790.0,119780.0,0.65278025]
[1755036321583,0.16795894,119790.0,119780.0,0.81975303]
[1755036321840,0.16795894,119790.0,119780.0,0.65278025]
[1755036323395,0.16795894,119790.0,119780.0,0.96975303]
[1755036325827,0.16795894,119790.0,119780.0,1.407708]
[1755036326587,0.16795894,119790.0,119780.0,0.80278025]
[1755036326791,0.16795894,119790.0,119780.0,1.24073522]
[1755036327399,0.16795894,119790.0,119780.0,1.407708]
[1755036327755,0.16795894,119790.0,119780.0,1.24073522]
[1755036327967,0.17008894,119790.0,119780.0,0.80278025]
[1755036328179,0.17008894,119790.0,119780.0,0.64960025]
[1755036328381,0.17008894,119790.0,119780.0,0.64749025]
[1755036328582,0.17314894,119790.0,119780.0,0.64749025]
[1755036331342,0.17312894,119790.0,119780.0,0.30777025]
[1755036331523,0.62853293,119790.0,119780.0,0.42160325]
[1755036331774,0.62853293,119790.0,119780.0,0.13888]
[1755036334625,0.71101736,119790.0,119780.0,0.13888]
[1755036335413,0.62853293,119790.0,119780.0,0.13888]
[1755036336260,0.65348293,119790.0,119780.0,0.13888]
[1755036337509,0.21952796,119790.0,119780.0,0.13888]
[1755036337715,0.18443574,119770.0,119760.0,0.0001222]
[1755036337945,0.62441071,119770.0,119760.0,0.0001222]
[1755036338160,0.62441071,119770.0,119760.0,0.1389222]
[1755036338161,0.70689428,119770.0,119760.0,0.1389222]
[1755036338594,0.70689428,119770.0,119760.0,0.0001222]
[1755036339006,0.62745071,119770.0,119760.0,0.0001222]
[1755036339222,0.62845071,119770.0,119760.0,0.0011222]
[1755036339470,0.19049574,119770.0,119760.0,0.0011222]
[1755036339837,0.62845071,119770.0,119760.0,0.0011222]
[1755036340516,1.14912893,119770.0,119760.0,1e-08]
[1755036340880,1.14912893,119770.0,119710.0,0.0002]
[1755036340881,0.18450548,119720.0,119710.0,0.0002]
[1755036341092,0.62448045,119720.0,119710.0,0.00032222]
[1755036341303,0.18956548,119720.0,119710.0,0.00032222]
[1755036341662,0.62752045,119720.0,119710.0,0.00032222]
[1755036341843,0.18956548,119720.0,119710.0,0.00032222]
[1755036342045,0.76660045,119720.0,119710.0,0.00032222]
[1755036342298,0.76660045,119720.0,119700.0,0.0002]
[1755036342299,0.18451944,119710.0,119700.0,0.0002]
[1755036342499,0.18957944,119710.0,119700.0,0.00032236]
[1755036342702,0.62753441,119710.0,119700.0,0.00032236]
[1755036342832,0.62753441,119710.0,119700.0,1e-08]
[1755036343466,0.71025766,119710.0,119700.0,1e-08]
[1755036343668,0.71025766,119710.0,119690.0,1e-08]
[1755036343669,0.18453339,119700.0,119690.0,1e-08]
[1755036343876,0.18453339,119700.0,119690.0,8.145e-05]
[1755036343877,0.62754836,119700.0,119690.0,8.145e-05]
[1755036344190,0.18959339,119700.0,119690.0,8.145e-05]
[1755036344361,0.62754836,119700.0,119690.0,8.145e-05]
[1755036344775,0.18959339,119700.0,119690.0,8.145e-05]
[1755036345027,0.19159339,119700.0,119690.0,8.145e-05]
[1755036345229,0.19159339,119700.0,119690.0,0.00213145]
[1755036345230,0.62650836,119700.0,119690.0,0.00213145]
[1755036345870,0.18653339,119700.0,119690.0,0.00518145]
[1755036346092,0.18855339,119700.0,119690.0,8.145e-05]
[1755036346288,0.62650836,119700.0,119690.0,8.145e-05]
[1755036346490,0.62954836,119700.0,119690.0,8.145e-05]
[1755036347500,0.19159339,119700.0,119690.0,8.145e-05]
[1755036347680,0.62954836,119700.0,119690.0,8.145e-05]
[1755036348321,0.68071029,119700.0,119690.0,8.145e-05]
[1755036348510,0.24275532,119700.0,119690.0,8.145e-05]
[1755036348715,0.65658691,119700.0,119690.0,8.145e-05]
[1755036349568,0.73931016,119700.0,119690.0,8.145e-05]
[1755036350399,0.74231016,119700.0,119690.0,8.145e-05]
[1755036350965,0.44631519,119700.0,119690.0,8.145e-05]
[1755036351190,0.50765375,119700.0,119690.0,8.145e-05]
[1755036351390,0.44631519,119700.0,119690.0,8.145e-05]
[1755036351840,0.88427016,119700.0,119690.0,8.145e-05]
[1755036352265,0.44631519,119700.0,119690.0,8.145e-05]
[1755036352686,0.88427016,119700.0,119690.0,8.145e-05]
[1755036353096,0.44631519,119700.0,119690.0,8.145e-05]
[1755036353304,0.88427016,119700.0,119690.0,8.145e-05]
[1755036354549,0.30435519,119700.0,119690.0,8.145e-05]
[1755036354757,0.63254836,119700.0,119690.0,8.145e-05]
[1755036355009,0.19155339,119700.0,119690.0,0.00518145]
[1755036355214,0.17208437,119700.0,119690.0,0.00518145]
[1755036356047,0.18953339,119700.0,119690.0,0.00518145]
[1755036359889,0.18953339,119700.0,119690.0,0.14770145]
[1755036360299,0.18953339,119700.0,119690.0,0.66837967]
[1755036360489,0.18953339,119700.0,119690.0,0.2304247]
[1755036360728,0.18953339,119700.0,119690.0,0.2554927]
[1755036361437,0.18753339,119700.0,119690.0,0.2554927]
[1755036361666,0.18853339,119700.0,119690.0,0.2554927]
[1755036361969,0.18553339,119700.0,119690.0,0.2554927]
[1755036363176,0.16808437,119700.0,119690.0,0.84344767]
[1755036363366,0.17108437,119700.0,119690.0,0.84344767]
[1755036364634,0.17108437,119700.0,119690.0,0.4054927]
[1755036364772,0.17108437,119700.0,119690.0,0.84344767]
[1755036371438,0.004,119700.0,119690.0,1.010546]
[1755036372219,0.004,119700.0,119690.0,0.57259103]
[1755036372424,0.003,119700.0,119690.0,1.010546]
[1755036372659,0.003,119700.0,119690.0,1.011546]
[1755036373229,0.003,119700.0,119690.0,1.034456]
[1755036373425,0.17540928,119720.0,119710.0,0.35]
[1755036373696,0.17540928,119720.0,119710.0,1.18090864]
[1755036374150,0.17540928,119720.0,119710.0,1.01707822]
[1755036374388,0.17540928,119720.0,119710.0,1.18414864]
[1755036374836,0.17540928,119720.0,119710.0,1.18514864]
[1755036374837,0.004,119720.0,119710.0,1.18514864]
[1755036375043,0.005,119720.0,119710.0,1.18514864]
[1755036375842,0.004,119720.0,119710.0,1.18514864]
[1755036376052,0.004,119720.0,119710.0,1.62410361]
[1755036376475,0.004,119720.0,119710.0,1.64701361]
[1755036376686,0.004,119720.0,119710.0,1.67201361]
[1755036377106,0.06684771,119750.0,119740.0,0.71702856]
[1755036377308,0.06684771,119750.0,119740.0,1.38046678]
[1755036377553,0.06684771,119750.0,119740.0,1.38370678]
[1755036377761,0.23389823,119770.0,119760.0,0.2]